bitfinex-derivatives/quotes_ETHF0:USTF0_20250213
["timestamp","ask_amount","ask_price","bid_price","bid_amount"]
[1739481074367,0.75557968,2666.6,2666.5,0.74993]
[1739481075268,0.00562968,2666.6,2666.3,3.31354701]
[1739481075458,0.74996,2666.5,2666.4,0.74994]
[1739481077266,0.74996,2666.4,2666.3,0.74997]
[1739481077862,0.74999,2666.3,2666.2,4.5352]
[1739481078565,0.74999,2666.3,2666.2,3.2078]
[1739481078766,0.6015,2666.4,2666.1,0.00562968]
[1739481078962,1.30692,2666.2,2666.1,0.00562968]
[1739481079268,1.30692,2666.2,2665.9,0.30288395]
[1739481079269,0.75007,2666.0,2665.9,0.30288395]
[1739481079568,0.75017,2665.8,2665.7,0.75016]
[1739481079870,0.6015,2665.9,2665.4,50.11764701]
[1739481080064,0.7502,2665.6,2665.5,0.75018]
[1739481080860,0.7502,2665.6,2665.5,1.05423757]
[1739481081059,0.7502,2665.6,2665.5,1.05427757]
[1739481081259,0.7502,2665.6,2665.5,0.75022]
[1739481081965,0.7502,2665.6,2665.5,1.05021504]
[1739481082766,0.75024,2665.4,2665.3,0.00562968]
[1739481083173,0.75041,2664.8,2664.7,44.0078]
[1739481083365,3.2078,2665.1,2664.5,4.97954701]
[1739481083569,0.75045,2664.7,2664.4,0.75053]
[1739481083765,0.5759,2665.0,2664.3,0.5992]
[1739481083766,0.75047,2664.6,2664.3,0.5992]
[1739481083964,3.31354701,2664.9,2664.3,41.3992]
[1739481084162,0.75053,2664.4,2664.3,40.8]
[1739481084361,0.75053,2664.4,2664.3,0.00562968]
[1739481085272,1.29803,2664.4,2664.3,0.00562968]
[1739481086072,0.5475,2664.4,2664.3,0.00562968]
[1739481086465,0.5475,2664.4,2664.3,0.75617968]
[1739481086869,0.5475,2664.4,2664.3,0.00562968]
[1739481087273,1.29803,2664.4,2664.3,0.00562968]
[1739481087476,0.5475,2664.4,2664.3,0.00562968]
[1739481088172,1.1402,2664.7,2664.3,0.00562968]
[1739481088173,0.5912,2664.7,2664.3,0.00562968]
[1739481088379,1.34165,2664.7,2664.4,0.75051]
[1739481088771,0.5912,2664.7,2664.4,0.75051]
[1739481088971,1.34165,2664.7,2664.5,0.75049]
[1739481089168,0.75048,2664.6,2664.4,0.75051]
[1739481089382,0.7505,2664.5,2664.3,1.91995968]
[1739481089679,0.5912,2664.7,2664.3,0.75615968]
[1739481089873,0.75053,2664.4,2664.3,0.00562968]
[1739481091177,1.30623,2664.4,2664.3,0.00562968]
[1739481092478,0.5557,2664.4,2664.3,0.00562968]
[1739481092683,0.5557,2664.4,2664.3,0.75617968]
[1739481093477,0.5557,2664.4,2664.3,0.00562968]
[1739481093674,1.30623,2664.4,2664.3,0.00562968]
[1739481095777,0.75053,2664.4,2664.3,0.00562968]
[1739481096987,3.95833,2664.4,2664.3,9.68e-06]
[1739481097486,0.75075,2663.6,2663.5,5.4546]
[1739481097686,0.75075,2663.6,2663.5,5.9993]
[1739481097884,1.87649,2664.2,2663.7,0.75071]
[1739481098087,0.75069,2663.8,2663.7,3.2078]
[1739481098586,0.75069,2663.8,2663.7,3.50992895]
[1739481098785,0.75069,2663.8,2663.7,4.08852895]
[1739481099179,0.75069,2663.8,2663.7,7.40207596]
[1739481100085,0.75069,2663.8,2663.7,4.19427596]
[1739481104188,0.75069,2663.8,2663.7,3.89214701]
[1739481104387,3.2078,2663.8,2663.5,0.00562968]
[1739481104785,0.75075,2663.6,2663.5,0.00562968]
[1739481105391,0.75075,2663.6,2663.5,0.30761699]
[1739481105591,0.75075,2663.6,2663.5,0.00562968]
[1739481106587,0.75075,2663.6,2663.5,9.68e-06]
[1739481106986,2.41775,2663.6,2663.5,9.68e-06]
[1739481108493,8.41775,2663.6,2663.5,9.68e-06]
[1739481109193,2.41775,2663.6,2663.5,9.68e-06]
[1739481112188,8.4790715,2663.6,2663.5,9.68e-06]
[1739481113094,2.4790715,2663.6,2663.5,9.68e-06]
[1739481113598,2.47906758,2663.6,2663.5,9.68e-06]
[1739481114388,8.47906758,2663.6,2663.5,9.68e-06]
[1739481115894,8.41775,2663.6,2663.5,9.68e-06]
[1739481116091,2.41875,2663.6,2663.5,9.68e-06]
[1739481116295,0.75075,2663.6,2663.5,9.68e-06]
[1739481118997,1.30315,2663.6,2663.5,9.68e-06]
[1739481122192,0.75075,2663.6,2663.5,9.68e-06]
[1739481133009,0.75075,2663.6,2663.5,0.58560968]
[1739481134199,0.75075,2663.6,2663.5,1.33638968]
[1739481134396,0.75075,2663.6,2663.5,0.58560968]
[1739481134811,3.2078,2663.8,2663.5,0.58560968]
[1739481134999,3.2078,2663.8,2663.7,0.75072]
[1739481135908,4.3825,2664.3,2663.8,1.87669]
[1739481136110,6.52697669,2664.9,2663.8,3.799]
[1739481136314,0.5516,2664.7,2664.6,0.75047]
[1739481136610,0.5516,2664.7,2664.3,1.1259]
[1739481136803,3.2078,2664.6,2664.5,0.75049]
[1739481137005,0.5516,2664.7,2664.6,0.75047]
[1739481137204,1.03739063,2664.8,2664.7,0.75044]
[1739481137512,0.5704,2664.8,2664.6,0.75046]
[1739481137812,0.5704,2664.8,2664.6,0.75045]
[1739481138011,0.5704,2664.8,2664.7,0.75044]
[1739481139206,3.21342968,2664.9,2664.4,5.08409]
[1739481139411,3.21342968,2664.9,2664.8,0.75041]
[1739481140109,0.00562968,2664.9,2664.8,0.75041]
[1739481140305,0.00562968,2664.9,2664.8,1.34661]
[1739481141701,0.00562968,2664.9,2664.8,0.75041]
[1739481141909,3.21342968,2664.9,2664.8,0.75041]
[1739481142605,6.52697669,2664.9,2664.5,0.5962]
[1739481142800,0.5676,2664.8,2664.7,0.75042]
[1739481143007,0.5676,2664.8,2664.7,0.75044]
[1739481146511,0.00562968,2664.9,2664.8,0.75041]
[1739481147508,0.00562968,2664.9,2664.8,1.32001]
[1739481147807,9.68e-06,2664.9,2664.8,1.89551]
[1739481148012,9.68e-06,2664.9,2664.8,3.56251]
[1739481148218,3.2078,2665.8,2665.7,0.75016]
[1739481148510,1.1603,2666.0,2664.9,1.87597]
[1739481148511,1.7314,2666.0,2665.8,0.75013]
[1739481148706,0.75013,2665.9,2665.6,0.75016]
[1739481148901,3.2078,2665.7,2665.6,0.75016]
[1739481149102,0.75012,2665.9,2665.3,1.87569]
[1739481149312,0.00562968,2665.9,2665.8,0.75013]
[1739481151711,1.667,2666.5,2665.6,6.52134701]
[1739481151914,3.2078,2666.6,2666.5,0.74993]
[1739481152106,0.5971,2666.6,2666.5,0.74993]
[1739481152410,0.5526,2666.8,2666.7,0.74988]
[1739481154711,0.5971,2666.9,2666.7,0.74988]
[1739481154917,0.00562968,2667.0,2666.5,0.5818]
[1739481155214,0.56212968,2667.0,2666.9,0.74982]
[1739481155407,1.14402968,2667.0,2666.9,0.74982]
[1739481157713,0.00562968,2667.0,2666.9,0.74982]
[1739481157914,0.00562968,2667.0,2666.9,3.95762]
[1739481161918,0.00562968,2667.0,2666.9,0.74982]
[1739481169324,0.5811,2667.6,2666.8,6.52134701]
[1739481169521,1.90501,2667.7,2667.6,0.74962]
[1739481169724,1.90501,2667.7,2667.3,1.87428]
[1739481169725,1.1554,2667.7,2667.3,0.5733]
[1739481169924,0.7497,2667.4,2667.1,3.2078]
[1739481170126,0.5949,2667.6,2667.1,3.2078]
[1739481170328,1.90502,2667.7,2667.6,0.74962]
[1739481170533,1.1554,2667.7,2667.2,2.45685]
[1739481170738,1.90503,2667.7,2667.6,0.74962]
[1739481171236,1.1554,2667.7,2667.2,2.45685]
[1739481171536,0.74966,2667.6,2667.5,0.74963]
[1739481171837,0.74962,2667.6,2667.4,0.74966]
[1739481172133,0.74965,2667.6,2667.2,0.5825]
[1739481172326,0.74965,2667.6,2667.5,0.74965]
[1739481172528,0.74966,2667.5,2667.4,0.74966]
[1739481172728,0.74968,2667.4,2667.3,0.74969]
[1739481172926,0.7497,2667.4,2667.3,0.74971]
[1739481173333,0.74972,2667.3,2667.2,0.74973]
[1739481173530,3.31354701,2667.6,2667.2,0.74973]
[1739481173723,0.74974,2667.2,2667.1,0.00562968]
[1739481174126,2.43644,2667.2,2667.1,0.00562968]
[1739481174333,1.6867,2667.2,2667.1,0.75539968]
[1739481175028,2.43644,2667.2,2667.1,0.75539968]
[1739481175833,2.43644,2667.2,2667.1,0.00562968]
[1739481177237,2.43644,2667.2,2667.1,0.75539968]
[1739481177423,2.43644,2667.2,2667.1,0.00562968]
[1739481179935,5.64424,2667.2,2667.1,0.00562968]
[1739481180236,3.2078,2667.5,2667.1,0.00562968]
[1739481180434,3.95747,2667.5,2667.1,0.00562968]
[1739481180730,0.74969,2667.4,2667.3,0.74968]
[1739481180931,3.2078,2667.5,2667.1,0.55982968]
[1739481181138,5.08194,2667.5,2667.1,0.00562968]
[1739481181535,0.74974,2667.2,2667.1,0.75537968]
[1739481182137,0.74972,2667.3,2667.2,0.74972]
[1739481182337,3.2078,2667.5,2667.1,0.00562968]
[1739481182538,0.74974,2667.2,2667.1,0.75537968]
[1739481183041,0.74972,2667.3,2667.2,0.74971]
[1739481183242,3.95748,2667.5,2667.4,0.74968]
[1739481183439,0.7497,2667.4,2667.3,0.74969]
[1739481183636,3.2078,2667.5,2667.1,0.00562968]
[1739481183937,0.74973,2667.3,2667.2,0.74972]
[1739481184144,0.74974,2667.2,2667.1,0.75537968]
[1739481184836,0.74974,2667.2,2667.1,0.00562968]
[1739481186245,0.74996,2666.5,2666.3,2.2331]
[1739481186541,0.74996,2666.5,2666.4,0.74996]
[1739481186737,4.9377,2666.8,2666.3,0.5681]
[1739481186942,4.9377,2666.8,2666.2,3.2078]
[1739481187246,0.74999,2666.4,2666.2,3.21342968]
[1739481187537,0.74999,2666.3,2666.2,3.96343968]
[1739481188142,0.00562968,2666.6,2666.2,3.96343968]
[1739481188844,0.00562968,2666.6,2666.3,0.74999]
[1739481189143,0.00562968,2666.6,2666.2,3.21342968]
[1739481189344,0.74994,2666.5,2666.3,0.74996]
[1739481189748,0.00562968,2666.6,2666.3,0.74996]
[1739481190039,0.74996,2666.4,2666.3,0.74996]
[1739481190344,0.74995,2666.5,2666.4,0.74995]
[1739481190538,0.00562968,2666.6,2666.4,0.74995]
[1739481190742,0.74993,2666.5,2666.3,0.74997]
[1739481191142,0.74993,2666.5,2666.4,0.74996]
[1739481191646,0.75555968,2666.6,2666.4,0.74995]
[1739481191845,0.74995,2666.5,2666.4,0.74995]
[1739481193046,6.52134701,2666.5,2666.2,0.00562968]
[1739481193252,0.74999,2666.3,2666.2,0.00562968]
[1739481197241,0.81124032,2666.3,2666.2,0.00562968]
[1739481198345,0.74999,2666.3,2666.2,0.00562968]
[1739481201249,0.00562968,2666.6,2666.2,0.00562968]
[1739481201543,0.00562968,2666.6,2666.5,0.74993]
[1739481202253,0.75553968,2666.6,2666.5,0.74993]
[1739481204153,0.74995,2666.5,2666.4,0.74994]
[1739481204950,0.00562968,2666.6,2666.2,0.00562968]
[1739481205150,0.75554968,2666.6,2666.5,0.74993]
[1739481206158,0.00562968,2666.6,2666.5,0.74993]
[1739481206854,0.00562968,2666.6,2666.5,3.95773]
[1739481207558,0.00562968,2666.6,2666.5,4.2565202]
[1739481208260,0.00562968,2666.6,2666.5,7.27127701]
[1739481208452,3.2078,2667.2,2666.5,7.27127701]
[1739481208453,0.74979,2667.1,2667.0,0.74979]
[1739481208857,0.74982,2666.9,2666.8,1.88113]
[1739481209258,3.31354701,2667.1,2666.6,0.5872]
[1739481209454,4.3367,2666.8,2666.4,1.665]
[1739481209656,0.74993,2666.5,2666.4,1.665]
[1739481209855,6.21133,2666.8,2666.3,1.1732]
[1739481210055,0.74996,2666.4,2666.3,1.1732]
[1739481210354,0.74996,2666.4,2666.3,1.92319]
[1739481211859,0.74999,2666.3,2666.2,0.00562968]
[1739481212554,0.74999,2666.3,2666.2,0.75564968]
[1739481213160,3.2078,2666.5,2666.3,0.74997]
[1739481213161,0.74998,2666.4,2666.3,0.74997]
[1739481213359,0.74996,2666.4,2666.3,0.74997]
[1739481214363,3.95775,2666.5,2666.4,0.74996]
[1739481214565,0.74999,2666.4,2666.3,0.74996]
[1739481215062,3.95776,2666.5,2666.4,0.74996]
[1739481215762,0.74999,2666.4,2666.3,0.74996]
[1739481216858,3.95775,2666.5,2666.4,0.74996]
[1739481218359,3.00356,2666.8,2666.6,0.74988]
[1739481218360,0.74989,2666.7,2666.6,0.74988]
[1739481219263,0.74994,2666.6,2666.5,0.74992]
[1739481226670,0.74992,2666.7,2666.6,0.74988]
[1739481228675,0.74991,2666.6,2666.5,1.30002]
[1739481231569,1.59541362,2666.8,2666.5,1.30002]
[1739481231772,0.46651362,2666.8,2666.7,0.74988]
[1739481232174,0.74983,2666.9,2666.8,0.74985]
[1739481233970,3.89457669,2667.1,2666.4,3.7619]
[1739481234172,0.74993,2666.6,2666.5,0.7499]
[1739481234373,0.5723,2666.8,2666.4,0.5541]
[1739481234574,1.3065,2666.7,2666.6,0.74988]
[1739481234972,0.5566,2666.7,2666.4,0.5541]
[1739481235177,0.74993,2666.6,2666.5,0.74991]
[1739481241392,0.74993,2666.5,2666.4,1.30402]
[1739481241577,0.74993,2666.5,2666.4,0.74992]
[1739481243584,1.29502,2666.6,2666.5,0.74993]
[1739481246375,0.5723,2666.8,2666.4,5.08268]
[1739481246580,0.00562968,2667.1,2667.0,0.74979]
[1739481247288,0.74985,2666.8,2666.7,4.8718]
[1739481247487,0.74985,2666.8,2666.7,5.62165]
[1739481247683,0.74985,2666.8,2666.7,3.2078]
[1739481247885,0.74985,2666.8,2666.7,3.95768]
[1739481248281,1.1658,2667.0,2666.5,1.664]
[1739481248485,1.34211,2666.7,2666.6,0.74989]
[1739481248883,0.5922,2666.7,2666.5,1.664]
[1739481249088,0.74991,2666.6,2666.5,2.41392]
[1739481249386,0.5922,2666.7,2666.6,0.74991]
[1739481249592,1.34208,2666.7,2666.6,0.74991]
[1739481250192,0.5922,2666.7,2666.4,0.5467]
[1739481250391,0.74993,2666.6,2666.5,0.74991]
[1739481250795,0.74993,2666.6,2666.4,0.5467]
[1739481250796,0.5922,2666.7,2666.4,0.5467]
[1739481251091,0.74996,2666.5,2666.4,0.74995]
[1739481252789,0.74993,2666.6,2666.5,0.74991]
[1739481253093,0.5922,2666.7,2666.6,0.74991]
[1739481253295,1.34208,2666.7,2666.6,0.74991]
[1739481257094,0.5922,2666.7,2666.6,0.74991]
[1739481257301,1.9156,2667.0,2666.9,0.74982]
[1739481257494,1.3188,2667.0,2666.9,0.74982]
[1739481258094,1.31879,2667.0,2666.9,0.74982]
[1739481259002,0.74988,2666.8,2666.7,0.74985]
[1739481260906,2.44351,2667.0,2666.6,1.664]
[1739481261202,0.74988,2666.7,2666.6,2.41389]
[1739481262805,0.74994,2666.6,2666.3,9.34884701]
[1739481263003,0.74994,2666.6,2666.5,0.7499]
[1739481263004,1.93054,2666.6,2666.5,0.7499]
[1739481265003,1.1806,2666.6,2666.5,0.7499]
[1739481265199,1.93051,2666.6,2666.5,0.7499]
[1739481265400,1.1806,2666.6,2666.5,0.7499]
[1739481265703,1.93051,2666.6,2666.5,0.7499]
[1739481266102,1.1806,2666.6,2666.5,0.7499]
[1739481266301,1.93051,2666.6,2666.5,0.7499]
[1739481268107,1.1806,2666.6,2666.5,0.7499]
[1739481268501,1.93051,2666.6,2666.5,0.7499]
[1739481269103,1.1806,2666.6,2666.3,3.2078]
[1739481269303,0.74996,2666.4,2666.3,3.95778]
[1739481270408,0.74996,2666.4,2666.3,3.95779]
[1739481271007,0.74999,2666.3,2666.2,0.75560968]
[1739481271506,0.74999,2666.3,2666.2,0.00562968]
[1739481279405,3.2078,2666.5,2666.2,0.00562968]
[1739481279610,0.74999,2666.3,2666.2,0.75562968]
[1739481281417,0.74999,2666.4,2666.3,0.74996]
[1739481282508,3.2078,2666.5,2666.2,0.00562968]
[1739481282713,0.74999,2666.3,2666.2,0.75561968]
[1739481286719,0.74999,2666.3,2666.2,0.75564968]
[1739481287121,0.74999,2666.3,2666.2,0.00562968]
[1739481288321,1.34429,2666.3,2666.2,0.00562968]
[1739481289519,1.34429,2666.3,2666.2,0.75564968]
[1739481292817,1.34429,2666.3,2666.2,0.00562968]
[1739481293213,1.34429,2666.3,2666.2,0.75564968]
[1739481293423,1.34429,2666.3,2666.2,0.00562968]
[1739481301233,0.75022,2665.5,2665.4,3.2078]
[1739481301622,0.75022,2665.5,2665.2,1.7715]
[1739481301935,0.75027,2665.3,2665.2,2.52178]
[1739481302426,1.7436,2665.5,2665.0,0.03076402]
[1739481302427,0.75033,2665.1,2665.0,0.0363937]
[1739481302731,0.75033,2665.1,2665.0,0.00562968]
[1739481303127,1.31983,2665.1,2665.0,0.00562968]
[1739481303332,0.75049,2664.6,2664.4,0.6023]
[1739481303730,7.6685855,2664.9,2664.3,0.6012]
[1739481303932,0.75054,2664.4,2664.2,3.2078]
[1739481304129,0.75054,2664.4,2664.2,3.95838]
[1739481304331,3.2078,2664.6,2664.1,20.2406]
[1739481304532,0.5963,2664.5,2664.1,20.2406]
[1739481305028,0.5963,2664.5,2664.2,0.75057]
[1739481305233,0.75053,2664.4,2664.2,0.75057]
[1739481305629,1.34682,2664.5,2664.2,0.75057]
[1739481305932,0.5963,2664.5,2664.2,3.2078]
[1739481306132,0.5963,2664.5,2664.4,0.75053]
[1739481306733,0.5963,2664.5,2664.3,0.75053]
[1739481306928,0.5963,2664.5,2664.2,3.95837]
[1739481307125,0.75055,2664.4,2664.2,0.75057]
[1739481307324,1.34681,2664.5,2664.3,0.75055]
[1739481307531,0.5963,2664.5,2664.4,0.75053]
[1739481309832,1.3468,2664.5,2664.4,0.75053]
[1739481310134,0.5963,2664.5,2664.4,0.75053]
[1739481314040,4.50999,2664.9,2664.8,0.75041]
[1739481314743,0.75044,2664.8,2664.7,0.75042]
[1739481315145,1.1623,2665.2,2664.6,3.9029855]
[1739481315349,2.48831,2665.2,2665.1,0.75033]
[1739481316045,1.9134,2665.2,2665.1,0.75033]
[1739481316251,0.00562968,2665.5,2665.4,0.75024]
[1739481316445,0.75584968,2665.5,2665.4,0.75024]
[1739481316651,0.75027,2665.4,2665.3,0.75026]
[1739481316849,0.00562968,2665.5,2665.2,1.1139]
[1739481317050,0.75033,2665.2,2665.1,0.75031]
[1739481317347,0.75032,2665.2,2665.1,0.75031]
[1739481318158,2.43249968,2665.5,2665.1,3.3251855]
[1739481318159,0.00562968,2665.5,2665.1,3.3251855]
[1739481318363,0.75584968,2665.5,2665.1,3.3251855]
[1739481318659,0.00562968,2665.5,2665.2,0.75028]
[1739481319262,0.75034,2665.1,2665.0,0.75034]
[1739481319851,0.75038,2664.9,2664.8,10.0602855]
[1739481320055,0.75038,2664.9,2664.8,3.2078]
[1739481320260,3.2078,2665.1,2664.5,4.9881855]
[1739481320457,3.2078,2665.1,2664.4,3.2078]
[1739481320458,3.7541,2665.1,2664.4,3.2078]
[1739481320660,0.75053,2664.4,2664.3,1.1657]
[1739481320857,0.75053,2664.4,2664.3,0.5639]
[1739481321050,1.87611,2664.7,2664.2,3.3251855]
[1739481321051,0.5427,2664.6,2664.2,3.3251855]
[1739481321255,0.5463,2664.5,2664.1,3.2078]
[1739481321456,0.75058,2664.2,2664.1,3.95841]
[1739481321656,0.75058,2664.2,2664.1,0.75061]
[1739481323657,0.5463,2664.5,2664.0,0.00562968]
[1739481323863,0.75061,2664.1,2664.0,0.00562968]
[1739481326264,3.95841,2664.1,2664.0,0.00562968]
[1739481327768,7.2835955,2664.1,2664.0,0.00562968]
[1739481328077,0.75081,2663.4,2663.3,3.3251855]
[1739481328366,0.75084,2663.3,2663.2,3.2078]
[1739481328770,4.3332,2663.8,2663.2,3.2078]
[1739481328966,0.75077,2663.6,2663.4,0.75081]
[1739481329167,4.33882968,2663.8,2663.4,0.75081]
[1739481329368,0.75078,2663.5,2663.4,0.75081]
[1739481329968,0.75081,2663.4,2663.3,4.0760055]
[1739481330173,4.33882968,2663.8,2663.4,0.7508]
[1739481330474,4.33882968,2663.8,2663.3,3.3251855]
[1739481330475,0.75076,2663.6,2663.3,3.3251855]
[1739481330771,0.7508,2663.5,2663.3,4.0759955]
[1739481330972,0.75081,2663.4,2663.3,3.3251855]
[1739481331174,0.75084,2663.3,2663.2,3.2115628]
[1739481331668,1.87681,2663.7,2663.2,3.2115628]
[1739481331875,0.75084,2663.3,2663.2,3.2115628]
[1739481332172,0.75084,2663.3,2663.2,3.9624228]
[1739481332567,0.75084,2663.3,2663.2,3.2115628]
[1739481333063,0.75084,2663.3,2663.2,3.9624228]
[1739481333472,0.75084,2663.3,2663.2,3.2115628]
[1739481333977,0.75082,2663.4,2663.3,0.75082]
[1739481334479,6.21560968,2663.8,2663.2,3.2115628]
[1739481334668,0.75082,2663.4,2663.3,0.75083]
[1739481334868,1.87681,2663.7,2663.2,3.9624128]
[1739481335071,0.75084,2663.3,2663.2,3.9624128]
[1739481335877,0.75084,2663.3,2663.2,3.9624228]
[1739481337275,0.75079,2663.5,2663.4,0.75078]
[1739481337475,0.75079,2663.5,2663.4,4.0759655]
[1739481337675,0.75079,2663.5,2663.4,3.3251855]
[1739481338273,0.75084,2663.3,2663.2,3.9624028]
[1739481338466,0.75083,2663.4,2663.3,0.75082]
[1739481339777,1.87689,2663.6,2663.2,3.2115628]
[1739481339973,0.75084,2663.3,2663.2,3.2115628]
[1739481340279,0.75084,2663.3,2663.2,0.0037628]
[1739481341276,0.75083,2663.4,2663.3,0.75081]
[1739481341573,0.7508,2663.5,2663.4,0.75077]
[1739481341884,0.75084,2663.3,2663.2,0.0037628]
[1739481344577,0.75084,2663.3,2663.2,0.7546228]
[1739481346071,0.5861,2663.4,2663.2,0.7546228]
[1739481346072,0.5861,2663.4,2663.2,0.0037628]
[1739481346273,0.7508,2663.5,2663.2,0.0037628]
[1739481346475,0.7508,2663.5,2663.4,0.75081]
[1739481348090,0.75081,2663.4,2663.3,0.5752]
[1739481348984,0.75081,2663.4,2663.3,1.32604]
[1739481350782,1.87681,2663.7,2663.3,0.5752]
[1739481350974,0.75081,2663.4,2663.3,0.5752]
[1739481351888,1.87691,2663.6,2663.2,0.7546128]
[1739481352083,0.75084,2663.3,2663.2,0.7546128]
[1739481352490,0.75083,2663.4,2663.3,0.7508]
[1739481352988,0.75084,2663.3,2663.2,0.7546028]
[1739481354184,0.75084,2663.4,2663.3,0.7508]
[1739481354584,4.41152968,2663.8,2663.2,0.0037628]
[1739481354786,0.75075,2663.7,2663.6,0.75072]
[1739481354986,4.41152968,2663.8,2663.5,0.5818]
[1739481355183,4.41152968,2663.8,2663.5,1.1395]
[1739481355388,0.75075,2663.7,2663.6,0.75072]
[1739481356196,0.75633968,2663.8,2663.7,0.75072]
[1739481356588,0.00562968,2663.8,2663.7,0.75072]
[1739481356895,0.75631968,2663.8,2663.7,0.75072]
[1739481357288,0.75074,2663.7,2663.6,0.75072]
[1739481357789,0.75075,2663.6,2663.5,5.09806]
[1739481358994,0.75075,2663.6,2663.5,3.2078]
[1739481359194,1.32685,2663.6,2663.5,3.2078]
[1739481359996,1.32685,2663.6,2663.2,0.7546028]
[1739481359997,0.75084,2663.3,2663.2,0.7546028]
[1739481360993,0.75084,2663.3,2663.2,0.7546228]
[1739481362294,0.75084,2663.3,2663.2,0.0037628]
[1739481362495,0.75084,2663.3,2663.2,0.7546228]
[1739481362889,0.75084,2663.3,2663.2,0.0037628]
[1739481363100,0.75084,2663.3,2663.2,0.7546228]
[1739481363400,0.75083,2663.4,2663.3,0.75081]
[1739481366406,0.5761,2663.6,2663.2,0.0037628]
[1739481366407,0.7508,2663.5,2663.4,0.75078]
[1739481366709,0.75084,2663.4,2663.3,0.75081]
[1739481366912,0.75084,2663.3,2663.2,0.0037628]
[1739481367202,1.29954,2663.3,2663.2,0.0037628]
[1739481367395,1.29954,2663.3,2663.2,0.7546228]
[1739481367396,0.5487,2663.3,2663.2,0.7546228]
[1739481367905,1.29954,2663.3,2663.2,0.7546228]
[1739481369496,0.5487,2663.3,2663.2,0.7546228]
[1739481370002,0.7508,2663.5,2663.2,0.0037628]
[1739481370205,1.04381312,2663.6,2663.2,0.0037628]
[1739481370206,2.36737312,2663.6,2663.5,0.75078]
[1739481370406,1.1489,2663.6,2663.5,0.75078]
[1739481370596,1.32355,2663.6,2663.5,0.75078]
[1739481370907,0.5728,2663.6,2663.5,0.75078]
[1739481371108,3.95854,2663.7,2663.6,0.75075]
[1739481371314,0.00562968,2663.8,2663.7,0.75072]
[1739481372708,0.75631968,2663.8,2663.7,0.75072]
[1739481374510,0.00562968,2663.8,2663.7,0.75072]
[1739481374716,0.75631968,2663.8,2663.7,0.75072]
[1739481374917,0.00562968,2663.8,2663.7,0.75072]
[1739481376314,0.75631968,2663.8,2663.7,0.75072]
[1739481376705,0.00562968,2663.8,2663.7,0.75072]
[1739481376911,0.00562968,2663.8,2663.7,7.2837055]
[1739481379913,0.75631968,2663.8,2663.7,7.2837055]
[1739481380112,0.00562968,2663.8,2663.7,7.2837055]
[1739481381109,0.75631968,2663.8,2663.7,7.2837055]
[1739481381315,0.75631968,2663.8,2663.7,3.95852]
[1739481382119,0.75631968,2663.8,2663.7,3.2078]
[1739481382322,1.35481968,2663.8,2663.7,3.2078]
[1739481383920,0.75078,2663.6,2663.5,0.75076]
[1739481384620,0.7508,2663.5,2663.4,0.75078]
[1739481384814,2.48088968,2663.8,2663.3,3.7639]
[1739481384815,0.75081,2663.4,2663.3,3.95861]
[1739481389419,0.75081,2663.4,2663.3,3.2078]
[1739481389615,0.75081,2663.4,2663.3,3.95864]
[1739481389815,0.5811,2663.5,2663.4,0.75081]
[1739481390022,1.33188,2663.5,2663.4,0.75081]
[1739481392720,1.32920338,2663.5,2663.4,0.75081]
[1739481394014,1.32920338,2663.5,2663.3,3.8033]
[1739481394015,0.75081,2663.4,2663.3,3.95862]
[1739481395322,0.57842338,2663.5,2663.3,3.95862]
[1739481395323,0.57842338,2663.5,2663.3,3.2078]
[1739481396928,1.33305,2663.7,2663.6,0.75072]
[1739481397621,0.75078,2663.6,2663.5,0.75077]
[1739481398028,0.75078,2663.5,2663.4,0.75079]
[1739481398828,0.75081,2663.4,2663.3,3.95862]
[1739481400932,0.75081,2663.4,2663.3,3.2078]
[1739481401134,0.75081,2663.4,2663.3,3.95863]
[1739481403331,0.75081,2663.5,2663.4,0.75078]
[1739481403834,0.75081,2663.4,2663.3,3.95863]
[1739481405934,0.75081,2663.4,2663.3,3.2078]
[1739481406443,0.75081,2663.4,2663.3,3.95864]
[1739481408234,0.75081,2663.5,2663.4,0.75078]
[1739481408738,0.75081,2663.4,2663.3,3.7736]
[1739481409542,0.75081,2663.4,2663.3,4.52444]
[1739481415743,0.75081,2663.4,2663.3,1.31664]
[1739481416047,0.75084,2663.3,2663.2,0.7546128]
[1739481416347,1.89384,2663.3,2663.2,0.7546128]
[1739481419747,1.89384,2663.3,2663.2,0.0037628]
[1739481420147,1.89384,2663.3,2663.2,0.7546228]
[1739481421442,0.75084,2663.3,2663.2,0.7546228]
[1739481421651,0.7508,2663.5,2663.4,0.75078]
[1739481423844,1.87818,2663.6,2663.5,0.75078]
[1739481424243,0.75078,2663.6,2663.5,0.75078]
[1739481425955,4.54084,2663.7,2663.6,0.75075]
[1739481426547,0.75078,2663.6,2663.5,0.75075]
[1739481433052,4.54084,2663.7,2663.6,0.75075]
[1739481433254,3.7901,2663.7,2663.3,1.1551]
[1739481433457,0.75081,2663.5,2663.4,0.75077]
[1739481434157,3.7901,2663.7,2663.3,1.1551]
[1739481434456,0.75076,2663.6,2663.5,0.75075]
[1739481435347,0.75081,2663.5,2663.4,0.75079]
[1739481437556,0.75081,2663.5,2663.2,0.0037628]
[1739481437754,0.75084,2663.3,2663.2,0.0037628]
[1739481438150,1.33964,2663.3,2663.2,0.0037628]
[1739481440154,0.5888,2663.3,2663.2,0.7546228]
[1739481440854,1.33964,2663.3,2663.2,0.0037628]
[1739481441058,1.33964,2663.3,2663.2,0.7546228]
[1739481442961,0.5888,2663.3,2663.2,0.7546228]
[1739481443156,6.74564,2663.7,2663.2,0.7546228]
[1739481443157,3.95854,2663.7,2663.6,0.75075]
[1739481443361,0.75632968,2663.8,2663.7,0.75072]
[1739481444055,0.75075,2663.7,2663.6,0.75073]
[1739481444251,0.75075,2663.6,2663.5,3.2078]
[1739481444456,0.75081,2663.5,2663.4,0.75079]
[1739481444658,5.09019968,2663.8,2663.2,3.2115628]